bitfinex-derivatives/quotes_SOLF0:USTF0_20251216
["timestamp","ask_amount","ask_price","bid_price","bid_amount"]
[1765889493652,4.00388858,128.45,128.39,3.16]
[1765889493944,2.38,128.44,128.41,1.92969328]
[1765889494542,2.38,128.43,128.41,1.98692069]
[1765889494746,2.38,128.43,128.41,0.05722741]
[1765889495147,6.38388858,128.43,128.41,0.05722741]
[1765889495352,2.38,128.42,128.41,0.05722741]
[1765889499258,13.39338858,128.43,128.41,0.05722741]
[1765889499451,0.0597285,128.44,128.41,3.23722741]
[1765889499648,0.0597285,128.44,128.43,1.92979801]
[1765889500145,0.0597285,128.44,128.43,3.18]
[1765889500351,0.64068,128.46,128.43,3.18]
[1765889500658,0.64068,128.46,128.45,5.1096346]
[1765889500856,0.64068,128.46,128.43,3.18]
[1765889501156,3.08068,128.46,128.44,1.92985663]
[1765889501457,3.13290106,128.46,128.44,1.97936178]
[1765889501750,3.13290106,128.46,128.44,0.04950515]
[1765889501952,3.13290106,128.46,128.44,1.97967032]
[1765889502150,3.13290106,128.46,128.44,0.04950515]
[1765889502353,3.13290106,128.46,128.44,1.9801122]
[1765889502755,3.13290106,128.46,128.44,0.04950515]
[1765889502948,3.13290106,128.46,128.44,1.9801122]
[1765889503257,3.13290106,128.46,128.44,0.04950515]
[1765889503448,3.13290106,128.46,128.44,1.98053311]
[1765889503650,2.44,128.45,128.44,0.04950515]
[1765889505360,10.14080106,128.46,128.44,0.04950515]
[1765889505761,0.69290106,128.46,128.44,3.22950515]
[1765889506055,0.69290106,128.46,128.45,5.11165048]
[1765889506256,0.69290106,128.46,128.45,3.18]
[1765889507951,9.4445,128.52,128.46,3.18]
[1765889508151,9.4445,128.52,128.48,5.11158266]
[1765889508559,10.1251,128.51,128.48,3.18]
[1765889509058,10.17426573,128.51,128.48,3.22908104]
[1765889511262,3.12,128.49,128.48,0.04908104]
[1765889512053,7.11833735,128.49,128.48,0.04908104]
[1765889515565,3.12,128.49,128.48,0.04908104]
[1765889517773,7.11833735,128.49,128.48,0.04908104]
[1765889519971,3.12,128.49,128.48,0.04908104]
[1765889520170,7.11833735,128.49,128.48,0.04908104]
[1765889521780,4.04750308,128.51,128.48,3.22908104]
[1765889521970,0.04916573,128.51,128.49,5.11041459]
[1765889522170,3.16916573,128.51,128.48,0.04908104]
[1765889522474,3.16916573,128.51,128.49,1.93000642]
[1765889523168,3.12,128.5,128.48,0.04908104]
[1765889524081,4.04750308,128.51,128.48,3.35908104]
[1765889524267,0.04916573,128.51,128.49,5.23998938]
[1765889524464,0.04916573,128.51,128.49,3.31]
[1765889524871,0.04916573,128.51,128.5,1.92978972]
[1765889529480,0.04916573,128.51,128.5,5.23978972]
[1765889529980,0.04916573,128.51,128.5,3.31]
[1765889532388,0.04916573,128.51,128.49,3.31]
[1765889532685,0.04916573,128.51,128.5,5.23739617]
[1765889532984,0.04916573,128.51,128.5,3.31]
[1765889535987,0.04916573,128.51,128.48,0.04908104]
[1765889535988,7.16750308,128.51,128.48,0.04908104]
[1765889536174,7.11833735,128.49,128.48,0.04908104]
[1765889542492,3.12,128.47,128.44,3.31]
[1765889542794,3.12,128.47,128.45,1.93356092]
[1765889543694,3.17097602,128.47,128.45,1.99070652]
[1765889543992,3.17097602,128.47,128.45,0.0571456]
[1765889544295,3.17097602,128.47,128.45,1.99168177]
[1765889544596,3.12,128.46,128.45,0.0571456]
[1765889547486,5.68172304,128.46,128.45,0.0571456]
[1765889549188,3.12,128.44,128.41,3.31]
[1765889549398,5.68172304,128.43,128.42,1.93524918]
[1765889549992,2.56172304,128.43,128.42,1.93524918]
[1765889553200,0.05457259,128.44,128.43,3.31]
[1765889565708,0.05457259,128.44,128.42,3.22]
[1765889565912,0.05457259,128.44,128.43,1.93358535]
[1765889566807,0.05457259,128.44,128.41,0.05704079]
[1765889566808,3.18457259,128.44,128.41,0.05704079]
[1765889567110,3.18457259,128.44,128.41,3.27704079]
[1765889567310,3.18457259,128.44,128.42,1.93373229]
[1765889567713,2.56172304,128.43,128.42,1.93373229]
[1765889567915,2.56172304,128.43,128.42,5.15373229]
[1765889568110,2.56172304,128.43,128.42,3.22]
[1765889569210,12.70112304,128.43,128.41,0.05704079]
[1765889569411,12.70112304,128.43,128.41,3.27704079]
[1765889569412,9.57112304,128.43,128.41,3.27704079]
[1765889570415,12.70112304,128.43,128.41,3.27704079]
[1765889570616,9.57112304,128.43,128.41,3.27704079]
[1765889570812,12.70112304,128.43,128.41,3.27704079]
[1765889572020,3.13,128.42,128.41,0.05704079]
[1765889575926,10.1394,128.43,128.41,0.05704079]
[1765889576128,5.69271745,128.42,128.41,0.05704079]
[1765889577426,3.13,128.4,128.35,3.22]
[1765889577625,3.13,128.38,128.35,3.22]
[1765889577824,3.13,128.4,128.35,3.22]
[1765889578019,2.56271745,128.4,128.38,5.15581404]
[1765889578325,2.56271745,128.4,128.38,3.22]
[1765889578519,5.75243859,128.4,128.38,3.22]
[1765889578923,2.62243859,128.4,128.38,3.22]
[1765889579125,2.62243859,128.4,128.39,5.15586013]
[1765889579427,0.05972114,128.4,128.39,3.22]
[1765889581328,3.18972114,128.4,128.37,3.22]
[1765889581523,0.05972114,128.4,128.39,5.1573444]
[1765889581720,0.05972114,128.4,128.39,3.22]
[1765889582913,2.56271745,128.43,128.39,3.22]
[1765889583121,2.56271745,128.43,128.42,5.15719386]
[1765889583321,2.56271745,128.43,128.42,3.22]
[1765889584530,2.56271745,128.43,128.41,3.11179035]
[1765889584730,2.56271745,128.43,128.42,1.93758702]
[1765889586335,3.18,128.43,128.41,0.05179035]
[1765889586526,5.74271745,128.43,128.41,0.05179035]
[1765889588340,5.74271745,128.43,128.41,3.11179035]
[1765889589040,2.56271745,128.43,128.41,3.11179035]
[1765889589239,5.74271745,128.43,128.41,3.11179035]
[1765889589624,5.74271745,128.43,128.41,0.05179035]
[1765889590238,5.74271745,128.43,128.41,3.11179035]
[1765889590737,3.18,128.43,128.41,3.11179035]
[1765889590942,9.62206085,128.44,128.42,4.99851764]
[1765889591238,9.62206085,128.44,128.42,3.06]
[1765889591438,0.0504434,128.44,128.43,1.93824843]
[1765889591643,0.0504434,128.44,128.43,4.99824843]
[1765889591846,0.0504434,128.44,128.43,3.06]
[1765889593532,3.2304434,128.44,128.41,3.11179035]
[1765889593727,3.2304434,128.44,128.42,1.9383476]
[1765889593927,0.0504434,128.44,128.42,4.9983476]
[1765889594135,0.0504434,128.44,128.43,4.9983476]
[1765889594330,0.0504434,128.44,128.43,3.06]
[1765889597035,108.9871,128.49,128.44,3.06]
[1765889597036,5.79271745,128.49,128.44,3.06]
[1765889597244,5.79271745,128.49,128.46,4.99723811]
[1765889597436,10.2349,128.51,128.48,3.06]
[1765889597642,2.56271745,128.52,128.49,1.93690413]
[1765889597842,2.56271745,128.52,128.5,3.06]
[1765889598141,2.61185484,128.52,128.5,3.10908504]
[1765889598737,0.04913739,128.52,128.51,4.99529144]
[1765889599038,0.04913739,128.52,128.51,3.06]
[1765889600643,2.61185484,128.52,128.51,3.06]
[1765889601635,0.04913739,128.52,128.51,3.06]
[1765889605842,2.56271745,128.56,128.51,3.06]
[1765889606039,2.56271745,128.56,128.54,3.06]
[1765889606542,3.23,128.57,128.54,3.06]
[1765889606745,5.79271745,128.57,128.54,3.06]
[1765889606937,2.62211297,128.57,128.54,3.11968259]
[1765889607140,3.28,128.56,128.54,3.11968259]
[1765889607333,2.56271745,128.56,128.54,3.11968259]
[1765889607647,0.05939552,128.57,128.54,3.11968259]
[1765889607847,0.05939552,128.57,128.55,4.98382508]
[1765889608037,3.33939552,128.57,128.55,3.06]
[1765889608440,0.05939552,128.57,128.55,3.06]
[1765889608941,3.33939552,128.57,128.55,3.06]
[1765889609147,3.33939552,128.57,128.54,3.11968259]
[1765889609347,3.33939552,128.57,128.54,0.05968259]
[1765889609940,3.28,128.55,128.54,0.05968259]
[1765889613653,10.2827,128.56,128.54,0.05968259]
[1765889614953,3.28,128.55,128.54,0.05968259]
[1765889616844,7.27503291,128.55,128.54,0.05968259]
[1765889617751,3.28,128.55,128.54,0.05968259]
[1765889619757,3.28,128.54,128.5,3.07]
[1765889620057,3.28,128.54,128.52,1.91892199]
[1765889620356,10.99683291,128.57,128.53,4.98892199]
[1765889620551,10.2818,128.57,128.54,3.07]
[1765889620747,3.28,128.56,128.54,3.12743381]
[1765889623158,10.33403991,128.57,128.54,3.12743381]
[1765889623458,0.05223991,128.57,128.54,3.12743381]
[1765889623953,3.33223991,128.57,128.55,1.92046403]
[1765889624152,3.33223991,128.57,128.55,4.99046403]
[1765889624362,3.33223991,128.57,128.55,3.07]
[1765889626454,0.05223991,128.57,128.56,4.99126725]
[1765889626657,0.05223991,128.57,128.56,3.07]
[1765889627058,0.00223991,128.57,128.56,3.07]
[1765889627764,0.00223991,128.57,128.55,3.07]
[1765889630061,3.33223991,128.57,128.54,3.12743381]
[1765889630256,3.33223991,128.57,128.55,1.92203709]
[1765889630963,3.33,128.56,128.54,0.05743381]
[1765889631371,7.32503291,128.56,128.54,0.05743381]
[1765889631775,3.33,128.55,128.54,0.05743381]
[1765889636887,10.3324,128.56,128.54,3.12743381]
[1765889638485,7.0024,128.56,128.54,3.12743381]
[1765889638985,3.33223991,128.57,128.54,3.12743381]
[1765889639383,3.33223991,128.57,128.54,0.05743381]
[1765889639588,10.3323,128.56,128.54,0.05743381]
[1765889639983,10.3323,128.56,128.54,3.12743381]
[1765889640781,3.33,128.55,128.54,0.05743381]
[1765889640977,7.32503291,128.55,128.54,0.05743381]
[1765889641374,7.0023,128.56,128.54,3.12743381]
[1765889641579,7.32727282,128.57,128.54,3.12743381]
[1765889642185,0.00223991,128.57,128.54,3.12743381]
[1765889642385,0.00223991,128.57,128.56,3.07]
[1765889643798,0.00223991,128.57,128.55,3.25]
[1765889644982,0.00223991,128.57,128.56,5.18811911]
[1765889645287,0.00223991,128.57,128.56,3.25]
[1765889650592,0.00223991,128.57,128.56,1.56]
[1765889651102,3.9934185,128.63,128.57,3.25]
[1765889651289,3.9934185,128.63,128.56,8.5619]
[1765889651290,3.9934185,128.63,128.61,3.25]
[1765889651688,7.2234185,128.63,128.61,3.25]
[1765889652087,7.2234185,128.63,128.61,3.30354462]
[1765889652088,7.27721329,128.63,128.61,3.30354462]
[1765889653888,0.05379479,128.63,128.61,3.30354462]
[1765889654198,0.05379479,128.63,128.62,5.18187521]
[1765889654398,0.05379479,128.63,128.62,3.25]
[1765889655202,3.28379479,128.63,128.61,3.30354462]
[1765889656301,0.05379479,128.63,128.61,3.30354462]
[1765889658600,3.23,128.62,128.61,0.05354462]
[1765889658899,3.28379479,128.63,128.61,3.30354462]
[1765889659997,3.28379479,128.63,128.61,0.05354462]
[1765889660300,7.27721329,128.63,128.61,0.05354462]
[1765889660500,3.23,128.62,128.61,0.05354462]
[1765889662187,11.04571329,128.63,128.61,3.30354462]
[1765889662398,14.27571329,128.63,128.61,3.30354462]
[1765889662586,4.04721329,128.63,128.61,3.30354462]
[1765889662786,0.05379479,128.63,128.61,3.30354462]
[1765889663801,0.05379479,128.63,128.62,5.17954481]
[1765889664196,0.05379479,128.63,128.62,3.25]
[1765889668601,0.05379479,128.63,128.61,3.30354462]
[1765889668803,0.05379479,128.63,128.62,5.17862298]
[1765889669002,7.2234185,128.7,128.62,3.25]
[1765889669308,3.23,128.69,128.66,5.17753915]
[1765889669506,2.55200111,128.68,128.66,3.25]
[1765889670004,2.60977108,128.68,128.66,3.30318454]
[1765889670200,0.05776997,128.68,128.66,3.30318454]
[1765889670407,0.05776997,128.68,128.67,5.1764355]
[1765889670607,0.05776997,128.68,128.67,3.25]
[1765889672005,3.28776997,128.68,128.66,0.05318454]
[1765889672309,5.78200111,128.67,128.66,0.05318454]
[1765889676909,2.55200111,128.67,128.66,0.05318454]
[1765889678425,5.87200111,128.67,128.66,0.05318454]
[1765889681713,5.87200111,128.67,128.66,0.05318454]
[1765889682716,3.32,128.65,128.6,3.38]
[1765889682916,5.87200111,128.64,128.63,1.92600726]
[1765889684106,2.55200111,128.64,128.63,1.92600726]
[1765889687419,2.55200111,128.64,128.63,5.30600726]
[1765889687813,2.55200111,128.64,128.63,3.38]
[1765889688009,0.05764427,128.65,128.63,3.38]
[1765889688313,0.05764427,128.65,128.64,5.30996927]
[1765889688515,0.05764427,128.65,128.64,3.38]
[1765889688922,0.05764427,128.65,128.63,3.38]
[1765889689120,3.37764427,128.65,128.64,1.93000856]
[1765889689313,3.37764427,128.65,128.63,3.38]
[1765889689622,3.37764427,128.65,128.64,1.93078031]
[1765889689819,5.92964538,128.65,128.64,1.93078031]
[1765889692813,2.60964538,128.65,128.62,3.43226739]
[1765889693015,0.05764427,128.65,128.64,3.38]
[1765889695722,3.32,128.64,128.62,3.43226739]
[1765889695929,2.55200111,128.63,128.62,3.43226739]
[1765889699325,2.55200111,128.64,128.62,3.43226739]
[1765889699525,2.55200111,128.64,128.63,1.93567495]
[1765889699822,2.55200111,128.64,128.63,5.31567495]
[1765889700022,2.55200111,128.64,128.63,3.38]
[1765889700436,9.55010111,128.64,128.62,3.43226739]
[1765889700734,3.32,128.63,128.62,0.05226739]
[1765889700927,9.55010111,128.64,128.62,3.43226739]
[1765889701124,2.55200111,128.64,128.63,1.9359306]
[1765889701330,0.05764427,128.65,128.64,3.38]
[1765889702032,2.55200111,128.68,128.65,3.38]
[1765889702229,2.55200111,128.68,128.67,3.38]
[1765889703329,0.05516776,128.69,128.67,3.38]
[1765889703526,2.55200111,128.68,128.67,3.38]
[1765889703838,5.82200111,128.68,128.66,3.25658413]
[1765889704030,2.55200111,128.68,128.67,5.13478903]
[1765889704231,0.05516776,128.69,128.67,3.2]
[1765889709639,0.05516776,128.69,128.68,1.93521037]
[1765889709939,0.05516776,128.69,128.67,3.2]
[1765889713338,0.05516776,128.69,128.68,5.13569579]
[1765889713540,0.05516776,128.69,128.68,3.2]
[1765889713738,3.32516776,128.69,128.66,3.25658413]
[1765889713924,3.32516776,128.69,128.67,5.13584028]
[1765889714125,0.05516776,128.69,128.67,3.2]
[1765889715142,2.60692978,128.69,128.67,3.2]
[1765889715633,5.87692978,128.69,128.67,3.2]
[1765889715936,5.87692978,128.69,128.66,3.25658413]
[1765889716145,5.87692978,128.69,128.67,1.93556972]
[1765889716539,3.32516776,128.69,128.67,5.13556972]
[1765889716840,5.87692978,128.69,128.67,3.2]
[1765889718139,2.60692978,128.69,128.67,3.2]
[1765889718347,0.05516776,128.69,128.68,5.13456029]
[1765889718644,0.05516776,128.69,128.68,3.2]
[1765889719346,2.55176202,128.73,128.68,3.2]
[1765889719542,2.55176202,128.73,128.71,3.2]
[1765889720236,5.82176202,128.73,128.71,0.05329264]
[1765889720440,3.27,128.72,128.71,0.05329264]
[1765889721544,12.87401066,128.73,128.71,3.25329264]
[1765889723351,12.87401066,128.73,128.71,0.05329264]
[1765889729357,3.27,128.72,128.71,0.05329264]
[1765889734160,7.2548872,128.72,128.71,0.05329264]
[1765889734359,3.36,128.7,128.66,19.16]
[1765889734552,3.36,128.7,128.69,1.92881615]
[1765889739768,3.41546181,128.71,128.69,5.08881615]
[1765889739966,3.41546181,128.71,128.69,3.16]
[1765889740266,3.41546181,128.71,128.68,3.21528106]
[1765889740565,3.41546181,128.71,128.69,1.93066657]
[1765889742166,3.41546181,128.71,128.69,5.09066657]
[1765889742470,0.05546181,128.71,128.7,5.09206698]
[1765889742671,0.05546181,128.71,128.7,3.16]
[1765889747265,3.41546181,128.71,128.68,3.21528106]
[1765889747469,3.41546181,128.71,128.7,1.93394755]
[1765889748965,3.36,128.69,128.68,0.05528106]
[1765889751376,3.36,128.67,128.64,3.16]
[1765889751568,3.36,128.67,128.65,1.93621445]
[1765889752276,3.36,128.67,128.65,1.93589022]
[1765889752478,3.41167621,128.67,128.65,1.99152936]
[1765889752781,3.36,128.66,128.65,0.05563914]
[1765889753681,3.36,128.66,128.65,1.99096666]
[1765889754078,3.36,128.64,128.6,3.16]
[1765889754282,3.36,128.64,128.62,1.93477786]
[1765889754580,3.36,128.64,128.63,1.93477786]
[1765889754766,3.36,128.64,128.6,3.16]
[1765889754963,3.36,128.64,128.63,1.93474564]
[1765889755262,0.05497044,128.65,128.63,5.09474564]
[1765889755462,0.05497044,128.65,128.64,5.09368378]
[1765889755676,0.05497044,128.65,128.64,3.16]
[1765889760278,0.00497044,128.65,128.64,3.16]
[1765889760577,3.9848872,128.72,128.65,3.16]
[1765889760778,3.9848872,128.72,128.7,3.16]
[1765889761087,7.3448872,128.72,128.7,3.16]
[1765889761381,3.36,128.71,128.7,0.05444233]
[1765889762075,3.36,128.71,128.66,3.16]
[1765889762076,3.36,128.69,128.66,3.16]
[1765889762281,3.36,128.69,128.68,1.93096972]
[1765889764085,7.04398522,128.7,128.68,1.93096972]
[1765889765289,3.06,128.69,128.67,0.05251]
[1765889768982,14.0401872,128.69,128.67,0.05251]
[1765889769282,3.06,128.68,128.67,0.05251]
[1765889775493,10.0562,128.67,128.62,3.36]
[1765889775787,3.06,128.66,128.64,5.29211882]
[1765889775992,3.06,128.66,128.64,1.93211882]
[1765889776180,3.06,128.66,128.65,1.93211882]
[1765889776680,3.06,128.66,128.64,0.05112825]
[1765889776878,3.06,128.66,128.65,1.93219268]
[1765889781598,11.03213559,128.67,128.65,5.29219268]
[1765889781599,0.05104839,128.67,128.65,5.29219268]
[1765889781799,0.05104839,128.67,128.65,3.36]
[1765889782289,3.11104839,128.67,128.65,3.36]
[1765889786605,0.05104839,128.67,128.65,3.36]
[1765889786809,3.06,128.72,128.67,3.36]
[1765889787009,3.06,128.72,128.68,1.93284889]
[1765889787209,3.06,128.72,128.69,3.36]
[1765889787902,3.11684887,128.72,128.69,3.41488734]
[1765889789617,5.66747794,128.72,128.69,3.41488734]
[1765889790706,2.60747794,128.72,128.69,3.41488734]
[1765889791213,5.66747794,128.72,128.69,3.41488734]
[1765889792714,2.60747794,128.72,128.69,3.41488734]
[1765889793619,5.76747794,128.72,128.69,3.41488734]
[1765889795521,3.24,128.71,128.69,3.41488734]
[1765889795816,5.84747794,128.72,128.69,3.41488734]
[1765889796316,3.24,128.71,128.69,3.41488734]
[1765889796507,3.24,128.71,128.69,0.05488734]
[1765889798412,3.24,128.71,128.69,3.14488734]
[1765889798619,5.79062907,128.71,128.69,3.14488734]
[1765889803422,5.79062907,128.71,128.7,1.93084491]
[1765889804224,3.29684887,128.72,128.7,5.02084491]
[1765889804425,3.29684887,128.72,128.7,3.09]
[1765889807630,3.24,128.7,128.69,0.05488734]
[1765889808431,5.79062907,128.71,128.69,3.14488734]
[1765889808932,3.24,128.7,128.69,0.05488734]
[1765889822650,12.78482907,128.71,128.69,3.14488734]
[1765889823755,3.12,128.7,128.69,0.05488734]
[1765889830241,3.12,128.68,128.63,12.91038044]
[1765889830446,5.67062907,128.65,128.64,1.93765226]
[1765889830647,3.12,128.64,128.61,3.21]
[1765889830850,3.12,128.64,128.63,1.9392892]
[1765889831055,3.12,128.64,128.61,3.21]
[1765889831250,3.16948236,128.64,128.62,3.21]
[1765889831458,0.04948236,128.64,128.62,3.21]
[1765889833152,108.815,128.69,128.62,3.21]
[1765889833153,9.54582907,128.69,128.63,3.21]
[1765889833455,12.66582907,128.69,128.67,3.21]
[1765889833656,2.55062907,128.69,128.67,3.21]
[1765889833960,2.55062907,128.7,128.67,3.21]
[1765889834249,5.72972404,128.7,128.67,3.26805758]
[1765889835956,5.72972404,128.7,128.68,1.93562585]
[1765889836357,3.12,128.69,128.68,1.93562585]
[1765889836557,3.12,128.69,128.67,0.05805758]
[1765889836850,5.67062907,128.68,128.67,0.05805758]
[1765889839258,3.12,128.67,128.63,3.21]
[1765889839462,3.12,128.67,128.65,1.9364977]
[1765889840264,3.1787721,128.67,128.65,1.97907987]
[1765889840564,3.1787721,128.67,128.65,0.04258217]
[1765889840764,3.1787721,128.67,128.65,1.9787634]
[1765889840955,3.1787721,128.67,128.65,0.04258217]
[1765889841155,3.1787721,128.67,128.65,1.9787634]
[1765889841355,3.1787721,128.67,128.65,0.04258217]
[1765889841553,3.1787721,128.67,128.65,1.97847352]
[1765889841850,3.1787721,128.67,128.65,0.04258217]
[1765889842050,3.1787721,128.67,128.65,1.97847352]
[1765889842265,3.1787721,128.67,128.65,0.04258217]
[1765889842460,3.1787721,128.67,128.65,1.97844488]
[1765889842660,3.1787721,128.67,128.65,0.04258217]
[1765889842862,3.1787721,128.67,128.65,1.97844498]
[1765889843166,3.1787721,128.67,128.65,0.04258217]
[1765889843367,3.1787721,128.67,128.65,1.97818016]
[1765889843556,3.1787721,128.67,128.65,0.04258217]
[1765889843769,3.1787721,128.67,128.65,1.97818026]
[1765889843962,3.1787721,128.67,128.65,0.04258217]
[1765889844166,3.1787721,128.67,128.65,1.97818016]
[1765889844366,3.1787721,128.67,128.65,0.04258217]
[1765889844564,3.1787721,128.67,128.65,1.97795072]
[1765889844764,3.1787721,128.67,128.65,0.04258217]
[1765889844967,3.1787721,128.67,128.65,1.97795072]
[1765889845165,3.1787721,128.67,128.65,0.04258217]
[1765889845360,3.1787721,128.67,128.65,1.97775374]
[1765889845561,3.1787721,128.67,128.65,0.04258217]
[1765889845762,3.1787721,128.67,128.65,1.97775374]
[1765889845964,3.1787721,128.67,128.65,3.25258217]
[1765889846161,0.0587721,128.67,128.66,5.14502145]
[1765889846364,0.0587721,128.67,128.66,3.21]
[1765889846770,0.0587721,128.67,128.66,5.76062907]
[1765889848158,0.0587721,128.67,128.66,3.21]
[1765889852366,65.08,128.7,128.66,3.21]
[1765889852568,65.08,128.7,128.69,5.14558761]
[1765889852758,65.08,128.7,128.69,3.21]
[1765889852967,65.08,128.7,128.66,3.21]
[1765889853164,3.12,128.68,128.66,3.21]
[1765889853361,3.17346113,128.68,128.66,3.26496134]
[1765889853565,0.05346113,128.68,128.66,3.26496134]
[1765889854261,7.04926113,128.68,128.67,5.0658334]
[1765889854466,7.04926113,128.68,128.67,3.13]
[1765889856485,7.04926113,128.68,128.66,3.18496134]
[1765889856664,10.38926113,128.68,128.67,1.93596325]
[1765889857372,3.34,128.67,128.66,0.05496134]
[1765889863080,0.05346113,128.68,128.66,3.18496134]
[1765889863384,0.05346113,128.68,128.67,5.06601397]
[1765889863586,0.05346113,128.68,128.67,3.13]
[1765889867688,3.39346113,128.68,128.66,0.05496134]
[1765889867889,0.05346113,128.68,128.67,5.06592142]
[1765889868191,0.05346113,128.68,128.67,3.13]
[1765889868389,3.39346113,128.68,128.66,0.05496134]
[1765889868591,3.39346113,128.68,128.66,3.18496134]
[1765889869093,0.05346113,128.68,128.66,3.18496134]
[1765889871295,0.05346113,128.68,128.67,1.93671102]
[1765889871593,0.05346113,128.68,128.66,3.18496134]
[1765889874294,3.39346113,128.68,128.67,1.93693241]
[1765889874498,0.05346113,128.68,128.67,5.06693241]
[1765889874696,0.05346113,128.68,128.67,3.13]
[1765889875299,3.39346113,128.68,128.66,0.05496134]
[1765889875600,3.39346113,128.68,128.67,1.93691372]
[1765889876099,3.39346113,128.68,128.66,0.05496134]
[1765889877096,14.37564014,128.68,128.66,0.05496134]
[1765889877299,3.34,128.67,128.66,0.05496134]
[1765889881712,3.34,128.65,128.61,3.13]
[1765889881900,65.2,128.64,128.61,3.13]
[1765889882310,65.2,128.64,128.62,3.13]
[1765889882812,65.25266405,128.64,128.62,3.17639293]
[1765889885610,65.25266405,128.64,128.63,3.21]
[1765889888613,0.05266405,128.64,128.63,3.21]
[1765889888820,6.9959,128.68,128.63,3.21]
[1765889888821,3.25,128.67,128.63,12.91038044]
[1765889889013,3.25,128.67,128.66,1.93752011]
[1765889889209,3.25,128.67,128.61,9.70038044]
[1765889889508,3.25,128.67,128.65,1.9377351]
[1765889889705,3.30619421,128.67,128.65,1.9968267]
[1765889889903,3.30619421,128.67,128.65,0.0590916]
[1765889890107,3.25,128.66,128.65,1.9968266]
[1765889890309,3.25,128.66,128.65,0.0590916]
[1765889890509,3.25,128.66,128.65,1.99690305]
[1765889890816,3.25,128.66,128.65,0.0590916]
[1765889896011,3.25,128.66,128.6,25.70038044]
[1765889896012,3.25,128.65,128.6,25.70038044]
[1765889896210,3.25,128.63,128.6,9.70038044]
[1765889897215,3.30322749,128.63,128.6,9.74034582]
[1765889898419,0.05322749,128.63,128.6,9.74034582]
[1765889900422,3.30322749,128.63,128.6,9.74034582]
[1765889901223,3.25,128.62,128.6,0.03996538]
[1765889901422,3.25,128.62,128.61,1.93758125]
[1765889903225,3.30322749,128.63,128.61,1.93758125]
[1765889903921,3.30322749,128.63,128.62,1.93758125]
[1765889904223,3.30322749,128.63,128.6,0.03996538]
[1765889904425,3.30322749,128.63,128.62,1.93610618]
[1765889911522,5.85772718,128.63,128.62,1.93610618]
[1765889913528,0.05322749,128.63,128.62,1.93610618]
[1765889913731,0.05322749,128.63,128.6,0.03996538]
[1765889914028,3.24322749,128.63,128.6,0.03996538]
[1765889914428,3.24322749,128.63,128.62,1.93521111]
[1765889919330,5.79766881,128.63,128.62,1.93521111]
[1765889920027,5.79766881,128.63,128.6,0.03996538]
[1765889920226,5.79766881,128.63,128.62,1.93690435]
[1765889921234,3.19,128.62,128.6,0.03996538]
[1765889927334,9.60616881,128.63,128.6,0.03996538]
[1765889927335,0.05322749,128.63,128.6,0.03996538]
[1765889927836,3.24322749,128.63,128.6,0.03996538]
[1765889930533,3.24322749,128.63,128.6,9.74034582]
[1765889933739,3.19,128.62,128.6,9.74034582]
[1765889933946,3.19,128.62,128.6,0.03996538]
[1765889937656,5.74444132,128.61,128.6,0.03996538]
[1765889937861,3.19,128.61,128.6,0.03996538]
[1765889940760,5.74444132,128.61,128.6,0.03996538]
[1765889944478,3.19,128.61,128.6,0.03996538]
[1765889945571,3.31322749,128.63,128.6,0.03996538]
[1765889945774,3.31322749,128.63,128.62,1.94065572]
[1765889952170,3.31322749,128.63,128.6,9.74034582]
[1765889971579,3.26,128.62,128.6,0.03996538]
[1765889987205,3.26,128.62,128.6,9.74034582]
[1765889988199,3.14322749,128.63,128.6,25.74034582]
[1765889989597,3.14322749,128.63,128.6,32.74014582]
[1765889990706,0.05322749,128.63,128.62,9.70038044]
[1765889995211,0.05322749,128.63,128.61,32.69958044]
[1765889997214,3.14322749,128.63,128.61,16.69958044]
[1765889997414,3.14322749,128.63,128.61,9.70038044]
[1765889997613,3.14322749,128.63,128.6,9.74034582]
[1765889997809,3.14322749,128.63,128.62,0.00068887]
[1765890000426,3.14322749,128.63,128.61,0.00068887]
[1765890001123,3.14322749,128.63,128.62,0.00068887]
[1765890001316,3.09,128.68,128.61,122.56786378]
[1765890001516,3.09,128.68,128.66,1.94008479]
[1765890002422,3.13967122,128.68,128.66,1.99294678]
[1765890002728,3.13967122,128.68,128.66,0.05286199]
[1765890002927,3.13967122,128.68,128.66,1.9920225]
[1765890003228,3.13967122,128.68,128.66,0.05286199]